Cogmind - Beta 13 @@@ ROGUE MODE // 2024.04.09 @ 15:55:18 Player: Abkaal Result: Destroyed by Y-45 Defender with Beam Rifle Performance ------------- Evolutions (0) 0 Regions Visited (2) 400 Robots Destroyed (27) 135 Value Destroyed (531) 531 Prototype IDs (2) 40 Alien Tech Used (0) 0 Bonus (0) 0 TOTAL SCORE: 1106 Bonus ------- None Cogmind --------- Core Integrity 0/250 Matter 293/300 Energy 125/125 System Corruption 1% Temperature Cool (9) Movement Treading (160) Location -10/Mines Parts ------- > --- POWER (1) -------- Light Ion Engine > --- PROPULSION (2) --- Light Treads Light Treads > --- UTILITY (2) ------ Large Storage Unit Signal Interpreter > --- WEAPON (2) ------- Shotgun Shotgun > --- INVENTORY (15) --- Light Treads Light Treads Compact Wheel Compact Wheel VTOL Module VTOL Module VTOL Module VTOL Module Small Storage Unit Terrain Scanner Hacking Suite EM Pulse Gun Grenade Launcher Grenade Launcher Hammer Peak State ------------ > --- POWER ------------ Light Ion Engine > --- PROPULSION ------- Aluminum Leg Compact Wheel > --- UTILITY ---------- Large Storage Unit Signal Interpreter > --- WEAPON ----------- Shotgun Shotgun > --- INVENTORY -------- VTOL Module VTOL Module VTOL Module VTOL Module Small Storage Unit Large Storage Unit Weight Redist. System Sensor Array Signal Interpreter Terrain Scanner Hacking Suite EM Pulse Gun Grenade Launcher Grenade Launcher Hammer [Rating: 11] Favorites ----------- Power Ion Engine Engine Ion Engine Propulsion Light Treads Treads Light Treads Leg Aluminum Leg Wheel Compact Wheel Utility Small Storage Unit Device ECM Suite Storage Small Storage Unit Processor Signal Interpreter Weapon Hammer Energy Gun Medium Laser Ballistic Gun Light Assault Rifle Impact Weapon Hammer Build | -11 -10 -10 ------- Run | Yrd Mat Min Slots Evolved . | . . . Power . | . . . Propulsion . | . . . Utility . | . . . Weapon . | . . . Parts Attached 25 | 6 19 . Power 5 | 1 4 . Engine 5 | 1 4 . Core . | . . . Reactor . | . . . Propulsion 9 | 2 7 . Treads 5 | 2 3 . Leg 1 | . 1 . Wheel 3 | . 3 . Hover . | . . . Flight . | . . . Utility 4 | 1 3 . Device 1 | . 1 . Storage 2 | 1 1 . Processor 1 | . 1 . Hackware . | . . . Protection . | . . . Artifact . | . . . Weapon 7 | 2 5 . Energy Gun 1 | 1 . . Energy Cannon . | . . . Ballistic Gun 4 | 1 3 . Ballistic Cannon . | . . . Launcher . | . . . Special Weapon . | . . . Impact Weapon 2 | . 2 . Slashing Weapon . | . . . Piercing Weapon . | . . . Special Melee Weapon . | . . . Unidentified Prototypes . | . . . Parts Lost 5 | . 5 . Power 2 | . 2 . Propulsion 2 | . 2 . Utility 1 | . 1 . Weapon . | . . . Highest Loss Streak 4 | . 4 . To Critical Strikes . | . . . Average Slot Usage (%) 97 | . 96 100 Engine 11 | . 11 14 Treads 19 | . 18 28 Leg 3 | . 4 . Wheel 5 | . 5 . Device 8 | . 9 . Storage 14 | . 14 14 Processor 4 | . 4 14 Energy Gun 2 | . 2 . Ballistic Gun 15 | . 14 28 Impact Weapon 10 | . 11 . Naked Turns . | . . . Heaviest Build 29 | 13 29 29 Greatest Support 40 | 40 40 40 Greatest Overweight (x) 1 | . 1 . Average Overweight (x) . | . . . Largest Inventory Capacity 15 | 8 15 15 Average Capacity 10 | 6 10 15 Most Carried 15 | 6 15 15 Average Carried 9 | 4 9 15 Final Capacity 15 | 8 15 15 Final Carried 15 | 6 15 15 Class Distribution -------------------- 100% | Mutant Dominant Class ---------------- Mutant | -10/Materials Mutant | -10/Mines Resources | -11 -10 -10 ----------- Run | Yrd Mat Min Matter Collected 569 | 236 333 . Remotely . | . . . Salvage Created 898 | . 898 . Parts 37 | . 37 . Haulers Intercepted 2 | . 2 . Recyclers Shooed . | . . . Parts Field Recycled . | . . . Retrieved Matter . | . . . Parts Self-Destructed . | . . . Prevented . | . . . Kills | -11 -10 -10 ------- Run | Yrd Mat Min Combat Hostiles Destroyed 16 | . 16 . Melee 2 | . 2 . Guns 9 | . 9 . Classes Destroyed 6 | . 6 . Hauler 2 | . 2 . Recycler 3 | . 3 . Operator 3 | . 3 . Watcher 3 | . 3 . Swarmer 6 | . 6 . Grunt 10 | . 10 . Best Kill Streak 3 | . 3 . Combat Bots Only 3 | . 3 . Max Kills in Single Turn 1 | . 1 . Gunslinging . | . . . Exploded . | . . . Melee 1 | . 1 . Uniques/NPCs Destroyed . | . . . Combat | -11 -10 -10 -------- Run | Yrd Mat Min Hostile Shots Fired 116 | . 109 7 Missed 25 | . 23 2 Damage Taken 967 | . 896 71 Core 261 | . 204 57 Absorbed by Shields . | . . . Core Remaining (%) 100 | 100 . . Volleys Fired 52 | . 52 . Largest 2 | . 2 . Hottest 70 | . 70 . Shots Fired 104 | . 104 . Gun 104 | . 104 . Cannon . | . . . Launcher . | . . . Special . | . . . Kinetic 71 | . 71 . Thermal 33 | . 33 . Explosive . | . . . Electromagnetic . | . . . Robot Hit Streak 17 | . 17 . Robot Miss Streak 7 | . 7 . Penetration Max . | . . . Secondary Targets . | . . . Shots Hit Robots 96 | . 96 . Core Hits 29 | . 29 . Critical Kills . | . . . Critical Parts Destroyed 7 | . 7 . Critical Strikes 7 | . 7 . Destroy 1 | . 1 . Smash 6 | . 6 . Melee Attacks 44 | . 44 . Impact 44 | . 44 . Slashing . | . . . Piercing . | . . . Sneak Attacks 2 | . 2 . Combat Hostiles . | . . . Follow-up Attacks 8 | . 8 . Damage Inflicted 1502 | . 1502 . Guns 709 | . 709 . Cannons . | . . . Explosions . | . . . Melee 790 | . 790 . Ramming 3 | . 3 . Kinetic 421 | . 421 . Thermal 288 | . 288 . Explosive . | . . . Electromagnetic . | . . . Impact 790 | . 790 . Slashing . | . . . Piercing . | . . . Highest Corruption 1 | . 1 1 Average Corruption 1 | . 1 1 Corruption Purged . | . . . Corruption Blocked . | . . . Effects 6 | . 3 3 Message Errors 2 | . 1 1 Matter Fused 2 | . 1 1 Energy Discharges 1 | . 1 . Data Loss (minor) 1 | . . 1 Overload Shots . | . . . Overflow Damage 233 | . 233 . Projectiles . | . . . Explosions . | . . . Melee 233 | . 233 . Knockbacks 3 | . 3 . Impact 3 | . 3 . Kinetic . | . . . Secondary . | . . . Self-Inflicted Damage . | . . . Shots . | . . . Rammed 1 | . 1 . Targets Rammed 1 | . 1 . Kicked . | . . . Crushed . | . . . Highest Temperature 276 | . 276 . Average Temperature 83 | . 83 . Received Heat Transfer 426 | . 399 27 Siege Activations . | . . . Robots Corrupted . | . . . Combat Hostiles . | . . . Parts Fried 11 | . 11 . Impact Corruptions 14 | . 14 . Robots Melted . | . . . Combat Hostiles . | . . . Parts Melted 1 | . 1 . Heat Transferred 851 | . 851 . Parts Sabotaged . | . . . Parts Stolen . | . . . Parts Stripped . | . . . Power Chain Reactions . | . . . Alert | -11 -10 -10 ------- Run | Yrd Mat Min Peak Influence 219 | . 219 100 Initial 85 | . . 85 Average 86 | . 89 85 Maximum Alert Level 1 | . 1 . Low Security (%) 94 | 100 93 100 Level 1 5 | . 6 . Level 2 . | . . . Level 3 . | . . . Level 4 . | . . . Level 5 . | . . . High Security . | . . . Max Security . | . . . Squads Dispatched 5 | . 5 . Investigation 2 | . 2 . Extermination . | . . . Reinforcement 3 | . 3 . Assault . | . . . Garrison . | . . . Intercept . | . . . Searches Triggered . | . . . Construction Impeded . | . . . Haulers Reinforced . | . . . Active Scanning Responses . | . . . Cargo Convoy Interrupts . | . . . Stealth | -11 -10 -10 --------- Run | Yrd Mat Min Distress Signals . | . . . Communications Jammed . | . . . Distress Signals . | . . . Times Spotted 34 | . 32 2 Peak Tracking Total 3 | . 3 2 Tactical Retreats 9 | . 9 . Traps | -11 -10 -10 ------- Run | Yrd Mat Min Traps Triggered 2 | . 2 . Indirectly . | . . . Trap Hack Attempts . | . . . Triggered . | . . . Disarmed . | . . . Reprogrammed . | . . . Reused . | . . . Traps Extracted . | . . . Installed . | . . . Triggered . | . . . Machines | -11 -10 -10 ---------- Run | Yrd Mat Min Machines Disabled . | . . . Max in Single Turn . | . . . Machines Repaired . | . . . Machines Dismantled . | . . . Machines Sabotaged . | . . . Overloaded Fab Kills . | . . . Hacking | -11 -10 -10 --------- Run | Yrd Mat Min Machines Accessed 7 | . 7 . Terminals 5 | . 5 . Fabricators . | . . . Repair Stations 1 | . 1 . Recycling Units 1 | . 1 . Scanalyzers . | . . . Garrison Access . | . . . Total Hacks 30 | . 30 . Successful 9 | . 9 . Failed 20 | . 20 . Catastrophic 2 | . 2 . Database Lockouts 1 | . 1 . Manual 13 | . 13 . Terminals 23 | . 23 . Fabricators . | . . . Repair Stations 3 | . 3 . Recycling Units 4 | . 4 . Scanalyzers . | . . . Garrison Access . | . . . Terminal Hacks 6 | . 6 . Robot Analysis 3 | . 3 . Prototype ID Bank 1 | . 1 . Dispatch Records 1 | . 1 . Transport Status 1 | . 1 . Fabricator Hacks . | . . . Repair Station Hacks 1 | . 1 . Scan Component 1 | . 1 . Recycling Unit Hacks 2 | . 2 . Report Inventory 2 | . 2 . Scanalyzer . | . . . Garrison Access Hacks . | . . . Unauthorized Hacks . | . . . Terminals . | . . . Fabricators . | . . . Repair Stations . | . . . Recycling Units . | . . . Scanalyzers . | . . . Garrison Access . | . . . Data Cores Recovered . | . . . Used . | . . . Hacking Detections 7 | . 7 . Full Trace Events 6 | . 6 . Feedback Events . | . . . Feedback Blocked . | . . . Robot Schematics Acquired . | . . . Robots Built . | . . . Authchips . | . . . Time . | . . . Total Robot Build Rating . | . . . Part Schematics Acquired . | . . . Parts Built . | . . . Authchips . | . . . Time . | . . . Total Part Build Rating . | . . . Parts Repaired . | . . . Time . | . . . Parts Recycled . | . . . Recycled Matter . | . . . Retrieved Matter . | . . . Retrieved Components . | . . . Parts Scanalyzed . | . . . Part Schematics Acquired . | . . . Parts Damaged . | . . . Bothacking | -11 -10 -10 ------------ Run | Yrd Mat Min Used RIF Installer . | . . . Robots Hacked . | . . . Non-combat . | . . . Combat . | . . . Robot Hacks Applied . | . . . Relay Couplers Released . | . . . Fabnet Peak Effective % . | . . . Robots Rewired . | . . . Allies Hacked . | . . . Hacks Repelled . | . . . Allies | -11 -10 -10 -------- Run | Yrd Mat Min Total Allies . | . . . Largest Group . | . . . Highest-Rated Group . | . . . Highest-Rated Ally . | . . . Total Orders . | . . . Ally Attacks . | . . . Total Damage . | . . . Kills . | . . . Allies Corrupted . | . . . Allies Melted . | . . . Intel | -11 -10 -10 ------- Run | Yrd Mat Min Robot Analysis Total 3 | . 3 . Derelict Logs Recovered 1 | . . 1 Drone Launches . | . . . Drone Recoveries . | . . . Exploration | -11 -10 -10 ------------- Run | Yrd Mat Min Turns Passed 2187 | 72 1955 160 Spaces Moved 1235 | 39 1096 100 Core 6 | 6 . . Treads 798 | 33 665 100 Legs . | . . . Wheels 431 | . 431 . Hover . | . . . Flight . | . . . Fastest Speed 50 | 50 100 160 Average Speed 142 | 143 140 160 Slowest Speed 160 | 160 160 160 Overloaded Moves . | . . . Propulsion Burnouts . | . . . Robots Hopped . | . . . Cave-ins Triggered . | . . . Exploration Rate (%) 46 | 4 96 40 Regions Visited 2 Branch Regions 1 Pre-discovered Areas . | . . . Known Exits Taken 1 | . 1 . Unknown Exits Taken 1 | 1 . . Scrap Searched . | . . . Spaces Dug . | . . . Terrain Destroyed . | . . . Melee . | . . . Projectile . | . . . AOE . | . . . Terrain Rammed . | . . . Walls Destroyed . | . . . Machines Disabled . | . . . Actions | -11 -10 -10 --------- Run | Yrd Mat Min Total 1508 | 52 1356 100 Wait 113 | 2 111 . Move 1233 | 38 1095 100 Hop . | . . . Pick Up 29 | 6 23 . Fast Attach 15 | 6 9 . Attach 5 | . 5 . Detach 2 | . 2 . Swap 5 | . 5 . Drop 19 | . 19 . Fire 52 | . 52 . Melee 34 | . 34 . Ram . | . . . Kick . | . . . Crush 1 | . 1 . Escape Stasis . | . . . Rewire . | . . . Trap . | . . . Miscellaneous . | . . . Route ------- -11/Scrapyard -10/Materials (discovered 4 exits: *Mat x3 / *Min) -10/Mines (discovered 1 exit: *Mat) History --------- Turn | Location | Event 13 | -11/Scrapyard | Discovered new exit (range 15) 73 | -11/Scrapyard | Entered Materials 312 | -10/Materials | Build established: Mutant 978 | -10/Materials | Discovered new exit (range 3) 1066 | -10/Materials | Discovered new exit (range 9) 1176 | -10/Materials | Central database locked down 1377 | -10/Materials | Core integrity fell below 50% 1395 | -10/Materials | Core integrity fell below 20% 1423 | -10/Materials | Lost 4 parts (2p1n1u) 1445 | -10/Materials | Discovered new exit (range 7) 1454 | -10/Materials | Identified exit to Mines 1544 | -10/Materials | Discovered new exit (range 12) 1831 | -10/Materials | Identified exit to Materials 2028 | -10/Materials | Entered Mines 2156 | -10/Mines | Discovered exit to Materials (range 6) 2172 | -10/Mines | Learned 2 Materials zone layouts 2186 | -10/Mines | Assembled infested the area 2188 | -10/Mines | Destroyed by Y-45 Defender with Beam Rifle Last Messages --------------- 01963_ Dropped Weight Redist. System. 01964_ Acquired Lgt. Treads. 01972_ Dropped Sensor Array. 01972_ Acquired Lgt. Treads. 01975_ Dropped Signal Interpreter. 01975_ Acquired Lgt. Treads. 01992_ Acquired 20 matter. 02010_ K-01 Serf collects debris. LOCATION=MINES GOAL=ESCAPE Something is scanning the area. 02065_ R2&/D#CUI%CEI&L<,PLU3RCI8NLS/K%N 02102_ System corrupted: Matter fused (-7). 02143_ System corrupted: Component data lost. 02156_ EXIT=FOUND: MATERIALS 02167_ K-01 Serf collects debris. 02172_ Acquired derelict log, extracted data. Data stored: Materials zone layouts (x2). 02186_ ALERT: Infestation in the mines, dispatching Demolisher response squad. Map ----- +----------------------------------------------------+ | ??????????????????????????# ########???????? | | ??????????????????????????# #???????? | | ??????????????????????????# #???????? | | ??????????????????????????######## #???????? | | ?????????????????????????????????# #???????? | | ????????????????????????????????## #???????? | | ???????????????????????????????## #???????? | | ??????????????????????????????## ##??????? | | ??????????????????????????????# ##?????? | | ??????????????????????####????# ##????? | | ?????????????????????? #????# #????? | | ?????????????????????? #????## #????? | | ??????????????????????# #?????#### #????? | | ??????????????????????# #????????## ##### | | ??????????????????????# #?????????# | | ??????????????????????# #????????## | | ??????????????????????# #??####### ##### | | ????????????###?####### ##?# #??? | | ???????????##" ## #?# #### #? | | ???????????#"" # #?# #??# ## # | | ???????????#// Y < ### ########?# | | ???????????#!! Y #?????? | | ???????????#"" # ###### #?????? | | ???????????##"??# #??????#??????? # | | ????????????????### #?????????????? # | | ??????????????????##@ #####?????????????? | | ???????????????????# #??????????????????? | | ??????????????????# #???????????????????? | | ?????????????????# #?????????????????????? | | ?????????????????# ?????????????????????? | | ?????????????????## ????????????????????? | | ??????????????????## ????????????????????? | | ???????????????????# ???????????????????? | | ???????????????????## ??????????????????? | | ????????????????????? ??????????????????? | | ????????????????????? $ #?????????????????? | | ????????????????????? ##?????????????????? | | ?????????????????????## #??????????????????? | | ??????????????????????? #??????????????????? | | ??????????????????????? ???????????????????? | | ????????????????????????????????????????????? | | ????????????????????????????????????????????? | | ????????????????????????????????????????????? | | ????????????????????????????????????????????? | | ????????????????????????????????????????????? | | ????????????????????????????????????????????? | | ????????????????????????????????????????????? | | ????????????????????????????????????????????? | | ????????????????????????????????????????????? | | ????????????????????????????????????????????? | +----------------------------------------------------+ Best States ------------- Heat Dissipation 25 Energy Generation 10 Energy Capacity 250 Matter Stores 300 Matter Capacity 300 Sight Range 16 Terrain Scan Density 10 ECM Strength 1 Evasion (%) 40 Recoil Reduction 2 Item Schematics ----------------- None Robot Schematics ------------------ None Fabricated ------------ Nothing Alien Tech Used ----------------- None Achievements -------------- None Challenges ------------ None Game ------ Seed NetworkPlatingBay Manual? 0 Play Time 00:17:48 Cumulative 29.2 hours Start 2024.04.09 @ 15:37:07 End 2024.04.09 @ 15:55:18 Sessions 1 Manual Loads 0 Difficulty Rogue Special Mode None Game No. 20 Rogue 20 Adventurer 0 Explorer 0 Win Type - Total 0 Types 0/0/0/0/0/0/0/0/0 Lore% 24 Gallery% 34 Achievement% 27 Wizard Run 0 Options --------- Layout 2 ASCII 0 Keyboard 1 Movement Numpad Keybinds 0 Fullscreen 1 Font 24/Smallcaps Map View 50x44 Zoom Use 0% Tactical HUD 1 Map Filters NONE Filters NONE Steam 1 RUN: 6f3170ea-a74d-4d36-8881-0a80bebbbc2e